[Event "Late-Titled-Tuesday-Blitz-June-04-2024"]
[Site "Chess.com"]
[Date "2024.06.04"]
[Round "1"]
[White "Revan_2002"]
[Black "Kombinator01"]
[Result "1/2-1/2"]
[WhiteElo "2806"]
[BlackElo "2463"]
[TimeControl "180+1"]
[EndTime "14:09:09 PDT"]
[Termination "Game drawn - insufficient material"]

1. c4 {[%clk 0:02:44.6]} 1... e6 {[%clk 0:02:59.5]} 2. Nf3 {[%clk 0:02:33.9]}
2... d5 {[%clk 0:03:00.4]} 3. e3 {[%clk 0:02:34.1]} 3... Nf6 {[%clk 0:03:00.7]}
4. b3 {[%clk 0:02:33.9]} 4... a5 {[%clk 0:03:00]} 5. a3 {[%clk 0:02:32.6]} 5...
Be7 {[%clk 0:02:58.7]} 6. Bb2 {[%clk 0:02:32.4]} 6... O-O {[%clk 0:02:59.3]} 7.
Be2 {[%clk 0:02:29.6]} 7... c5 {[%clk 0:02:59.8]} 8. cxd5 {[%clk 0:02:28.1]}
8... exd5 {[%clk 0:03:00]} 9. d4 {[%clk 0:02:28.6]} 9... a4 {[%clk 0:02:52.6]}
10. dxc5 {[%clk 0:02:26.3]} 10... axb3 {[%clk 0:02:52.6]} 11. Qxb3 {[%clk
0:02:26.3]} 11... Bxc5 {[%clk 0:02:51.8]} 12. O-O {[%clk 0:02:26.9]} 12... Nc6
{[%clk 0:02:50.9]} 13. Nc3 {[%clk 0:02:19.2]} 13... d4 {[%clk 0:02:38.5]} 14.
exd4 {[%clk 0:02:17]} 14... Nxd4 {[%clk 0:02:37.4]} 15. Nxd4 {[%clk 0:02:16.4]}
15... Qxd4 {[%clk 0:02:38.3]} 16. Nb5 {[%clk 0:02:10]} 16... Qf4 {[%clk
0:02:31]} 17. Rac1 {[%clk 0:02:05]} 17... Be6 {[%clk 0:02:24.8]} 18. Qf3 {[%clk
0:02:00.9]} 18... Qxf3 {[%clk 0:01:55.1]} 19. Bxf3 {[%clk 0:02:01.8]} 19... Be7
{[%clk 0:01:55.4]} 20. Bxb7 {[%clk 0:01:58.2]} 20... Ra5 {[%clk 0:01:55.6]} 21.
Bc6 {[%clk 0:01:42.9]} 21... Rb8 {[%clk 0:01:48.8]} 22. a4 {[%clk 0:01:35.6]}
22... Rxa4 {[%clk 0:01:35.9]} 23. Be5 {[%clk 0:01:33.6]} 23... Rf8 {[%clk
0:01:22.6]} 24. Nd4 {[%clk 0:01:28.9]} 24... Ra2 {[%clk 0:01:13.2]} 25. Nxe6
{[%clk 0:01:14.5]} 25... fxe6 {[%clk 0:01:14.1]} 26. Ra1 {[%clk 0:01:03.2]}
26... Re2 {[%clk 0:01:10.9]} 27. Rfe1 {[%clk 0:01:02.2]} 27... Rxe1+ {[%clk
0:01:11]} 28. Rxe1 {[%clk 0:01:03.1]} 28... Rc8 {[%clk 0:01:11.3]} 29. Ba4
{[%clk 0:01:00]} 29... Kf7 {[%clk 0:01:05.7]} 30. h3 {[%clk 0:00:57.2]} 30...
Nd5 {[%clk 0:01:01.3]} 31. g3 {[%clk 0:00:46.7]} 31... Bf6 {[%clk 0:00:59.7]}
32. Bxf6 {[%clk 0:00:39.8]} 32... Nxf6 {[%clk 0:01:00.6]} 33. Bb3 {[%clk
0:00:39.4]} 33... Rc6 {[%clk 0:01:00.2]} 34. Kg2 {[%clk 0:00:35.3]} 34... Nd5
{[%clk 0:00:58.4]} 35. f4 {[%clk 0:00:32.1]} 35... Rc3 {[%clk 0:00:56.5]} 36.
Bxd5 {[%clk 0:00:31.7]} 36... exd5 {[%clk 0:00:56.5]} 37. Re5 {[%clk 0:00:32.2]}
37... Rd3 {[%clk 0:00:54.9]} 38. h4 {[%clk 0:00:31.1]} 38... g6 {[%clk
0:00:52.3]} 39. h5 {[%clk 0:00:29.9]} 39... d4 {[%clk 0:00:45.2]} 40. h6 {[%clk
0:00:21.3]} 40... Rd2+ {[%clk 0:00:43.9]} 41. Kh3 {[%clk 0:00:20.4]} 41... Rd1
{[%clk 0:00:42.3]} 42. Kg4 {[%clk 0:00:20.5]} 42... Rh1 {[%clk 0:00:40.2]} 43.
Rd5 {[%clk 0:00:18.7]} 43... Rxh6 {[%clk 0:00:40]} 44. Rxd4 {[%clk 0:00:17.2]}
44... Rh5 {[%clk 0:00:39.7]} 45. Rd7+ {[%clk 0:00:16.3]} 45... Kf6 {[%clk
0:00:39.9]} 46. Rd6+ {[%clk 0:00:15.6]} 46... Kf7 {[%clk 0:00:39.7]} 47. Kf3
{[%clk 0:00:15.8]} 47... Ke7 {[%clk 0:00:37.4]} 48. Rd3 {[%clk 0:00:15.5]} 48...
Ra5 {[%clk 0:00:35.5]} 49. g4 {[%clk 0:00:15.4]} 49... Ra7 {[%clk 0:00:33.3]}
50. g5 {[%clk 0:00:12.9]} 50... Kf7 {[%clk 0:00:33.2]} 51. Kg4 {[%clk
0:00:11.5]} 51... Kg7 {[%clk 0:00:33.5]} 52. Rd6 {[%clk 0:00:09.8]} 52... Rf7
{[%clk 0:00:33.8]} 53. Kf3 {[%clk 0:00:10.1]} 53... Re7 {[%clk 0:00:34.1]} 54.
Rd5 {[%clk 0:00:09.5]} 54... Rf7 {[%clk 0:00:34.6]} 55. Ke4 {[%clk 0:00:09]}
55... Re7+ {[%clk 0:00:34.6]} 56. Re5 {[%clk 0:00:09.5]} 56... Ra7 {[%clk
0:00:32.8]} 57. Kd5 {[%clk 0:00:08.7]} 57... Ra5+ {[%clk 0:00:32.3]} 58. Ke6
{[%clk 0:00:08.7]} 58... Ra4 {[%clk 0:00:31.8]} 59. f5 {[%clk 0:00:07.1]} 59...
Ra6+ {[%clk 0:00:30.4]} 60. Kd5 {[%clk 0:00:07.1]} 60... gxf5 {[%clk 0:00:25.2]}
61. Rxf5 {[%clk 0:00:07.8]} 61... Kg6 {[%clk 0:00:23.5]} 62. Rf6+ {[%clk
0:00:08.1]} 62... Rxf6 {[%clk 0:00:23]} 63. gxf6 {[%clk 0:00:09]} 63... Kxf6
{[%clk 0:00:23.8]} 64. Ke4 {[%clk 0:00:08.8]} 64... Kg5 {[%clk 0:00:24.7]} 65.
Kf3 {[%clk 0:00:09.2]} 65... Kh4 {[%clk 0:00:25.6]} 66. Kg2 {[%clk 0:00:09.8]}
66... Kg4 {[%clk 0:00:26.5]} 67. Kh1 {[%clk 0:00:10.4]} 67... Kh3 {[%clk
0:00:27.4]} 68. Kg1 {[%clk 0:00:11.2]} 68... h6 {[%clk 0:00:27.8]} 69. Kh1
{[%clk 0:00:12.1]} 69... Kg3 {[%clk 0:00:28.3]} 70. Kg1 {[%clk 0:00:13]} 70...
Kg4 {[%clk 0:00:29.2]} 71. Kh1 {[%clk 0:00:13.9]} 71... Kh4 {[%clk 0:00:30.1]}
72. Kg1 {[%clk 0:00:14.8]} 72... Kh3 {[%clk 0:00:31]} 73. Kh1 {[%clk 0:00:15.7]}
73... Kg4 {[%clk 0:00:31.9]} 74. Kg1 {[%clk 0:00:16.6]} 74... Kf5 {[%clk
0:00:32.8]} 75. Kh1 {[%clk 0:00:17.5]} 75... Kf6 {[%clk 0:00:33.7]} 76. Kg1
{[%clk 0:00:18.4]} 76... Kf7 {[%clk 0:00:34.6]} 77. Kh1 {[%clk 0:00:19.3]} 77...
Kf8 {[%clk 0:00:35.5]} 78. Kg1 {[%clk 0:00:20.2]} 78... Kg8 {[%clk 0:00:36.4]}
79. Kh1 {[%clk 0:00:21.1]} 79... Kh8 {[%clk 0:00:37.3]} 80. Kg1 {[%clk 0:00:22]}
80... Kh7 {[%clk 0:00:38.2]} 81. Kh1 {[%clk 0:00:22.9]} 81... Kg7 {[%clk
0:00:39.1]} 82. Kg1 {[%clk 0:00:23.8]} 82... Kg6 {[%clk 0:00:40]} 83. Kh1 {[%clk
0:00:24.7]} 83... Kh5 {[%clk 0:00:40.9]} 84. Kg1 {[%clk 0:00:25.6]} 84... Kg5
{[%clk 0:00:41.8]} 85. Kh1 {[%clk 0:00:26.5]} 85... h5 {[%clk 0:00:42.7]} 86.
Kg1 {[%clk 0:00:27.4]} 86... Kf5 {[%clk 0:00:43.6]} 87. Kh1 {[%clk 0:00:28.3]}
87... Ke5 {[%clk 0:00:44.5]} 88. Kg1 {[%clk 0:00:29.2]} 88... Ke6 {[%clk
0:00:45.4]} 89. Kh1 {[%clk 0:00:30.1]} 89... Ke7 {[%clk 0:00:46.3]} 90. Kg1
{[%clk 0:00:31]} 90... Ke8 {[%clk 0:00:47.2]} 91. Kh1 {[%clk 0:00:31.9]} 91...
Kf8 {[%clk 0:00:48.1]} 92. Kg1 {[%clk 0:00:32.8]} 92... Kg8 {[%clk 0:00:49]} 93.
Kh1 {[%clk 0:00:33.7]} 93... Kh8 {[%clk 0:00:49.9]} 94. Kg1 {[%clk 0:00:34.6]}
94... Kh7 {[%clk 0:00:50.8]} 95. Kh1 {[%clk 0:00:35.5]} 95... Kg7 {[%clk
0:00:51.7]} 96. Kg1 {[%clk 0:00:36.4]} 96... Kh6 {[%clk 0:00:52.6]} 97. Kh1
{[%clk 0:00:37.3]} 97... Kg6 {[%clk 0:00:53.5]} 98. Kg1 {[%clk 0:00:38.2]} 98...
Kg5 {[%clk 0:00:54.4]} 99. Kh1 {[%clk 0:00:39.1]} 99... Kf5 {[%clk 0:00:55.3]}
100. Kg1 {[%clk 0:00:40]} 100... Kf6 {[%clk 0:00:56.2]} 101. Kh1 {[%clk
0:00:40.9]} 101... Ke5 {[%clk 0:00:57.1]} 102. Kg1 {[%clk 0:00:41.8]} 102... Kd5
{[%clk 0:00:58]} 103. Kh1 {[%clk 0:00:42.7]} 103... Kd4 {[%clk 0:00:58.9]} 104.
Kg1 {[%clk 0:00:38.8]} 104... Ke4 {[%clk 0:00:59.8]} 105. Kh1 {[%clk 0:00:38.9]}
105... Kf4 {[%clk 0:01:00.7]} 106. Kg1 {[%clk 0:00:38.8]} 106... Kg4 {[%clk
0:01:01.6]} 107. Kh1 {[%clk 0:00:39.1]} 107... Kh4 {[%clk 0:01:02.5]} 108. Kh2
{[%clk 0:00:39]} 108... Kg4 {[%clk 0:01:02.2]} 109. Kg2 {[%clk 0:00:38.9]}
109... h4 {[%clk 0:01:02.7]} 110. Kh2 {[%clk 0:00:39.2]} 110... Kf4 {[%clk
0:01:03.3]} 111. Kh3 {[%clk 0:00:39.4]} 111... Kg5 {[%clk 0:01:04.2]} 112. Kg2
{[%clk 0:00:39.6]} 112... Kh5 {[%clk 0:01:05.1]} 113. Kh2 {[%clk 0:00:40]}
113... Kg4 {[%clk 0:01:06]} 114. Kg2 {[%clk 0:00:40.4]} 114... Kf5 {[%clk
0:01:06.4]} 115. Kh3 {[%clk 0:00:40.8]} 115... Kg5 {[%clk 0:01:06.9]} 116. Kh2
{[%clk 0:00:41.2]} 116... Kg4 {[%clk 0:01:07.4]} 117. Kg2 {[%clk 0:00:41.6]}
117... h3+ {[%clk 0:01:08.2]} 118. Kh2 {[%clk 0:00:41.8]} 118... Kh4 {[%clk
0:01:09.1]} 119. Kh1 {[%clk 0:00:42.3]} 119... Kh5 {[%clk 0:01:09.4]} 120. Kh2
{[%clk 0:00:42.5]} 120... Kg4 {[%clk 0:01:10]} 121. Kh1 {[%clk 0:00:43.4]}
121... Kh4 {[%clk 0:01:10.6]} 122. Kh2 {[%clk 0:00:44.3]} 122... Kg4 {[%clk
0:01:11.1]} 123. Kh1 {[%clk 0:00:45.2]} 123... Kg3 {[%clk 0:01:11.8]} 124. Kg1
{[%clk 0:00:45.6]} 124... Kf4 {[%clk 0:01:12.2]} 125. Kh1 {[%clk 0:00:46.5]}
125... Kg4 {[%clk 0:01:12.7]} 126. Kh2 {[%clk 0:00:47]} 126... Kh4 {[%clk
0:01:13.1]} 127. Kh1 {[%clk 0:00:47.5]} 127... Kg3 {[%clk 0:01:13.7]} 128. Kg1
{[%clk 0:00:47.5]} 128... h2+ {[%clk 0:01:14.3]} 129. Kh1 {[%clk 0:00:48.2]}
129... Kh4 {[%clk 0:01:14.9]} 130. Kg2 {[%clk 0:00:48.1]} 130... h1=B+ {[%clk
0:01:14]} 1/2-1/2

[Event "Late-Titled-Tuesday-Blitz-June-04-2024"]
[Site "Chess.com"]
[Date "2024.06.04"]
[Round "1"]
[White "rhwr"]
[Black "brunoo2003"]
[Result "1/2-1/2"]
[WhiteElo "2289"]
[BlackElo "2592"]
[TimeControl "180+1"]
[EndTime "14:09:22 PDT"]
[Termination "Game drawn by repetition"]

1. e4 {[%clk 0:03:00.9]} 1... e5 {[%clk 0:02:51]} 2. Nf3 {[%clk 0:03:00.1]} 2...
d6 {[%clk 0:02:51.4]} 3. Bc4 {[%clk 0:02:59.6]} 3... Be7 {[%clk 0:02:50.1]} 4.
O-O {[%clk 0:02:58.9]} 4... Nf6 {[%clk 0:02:50.1]} 5. Re1 {[%clk 0:02:57.3]}
5... O-O {[%clk 0:02:50.3]} 6. h3 {[%clk 0:02:57.3]} 6... c6 {[%clk 0:02:46.2]}
7. c3 {[%clk 0:02:56.1]} 7... d5 {[%clk 0:02:41.3]} 8. exd5 {[%clk 0:02:54.8]}
8... cxd5 {[%clk 0:02:42.2]} 9. Bb3 {[%clk 0:02:55.2]} 9... e4 {[%clk
0:02:41.2]} 10. Nd4 {[%clk 0:02:54.9]} 10... Nc6 {[%clk 0:02:37.8]} 11. d3
{[%clk 0:02:55.2]} 11... Bc5 {[%clk 0:02:13.1]} 12. Be3 {[%clk 0:02:49]} 12...
Ne5 {[%clk 0:01:54.4]} 13. dxe4 {[%clk 0:02:39.9]} 13... dxe4 {[%clk 0:01:53.5]}
14. Bc2 {[%clk 0:02:23.7]} 14... Nc4 {[%clk 0:01:49.9]} 15. b3 {[%clk
0:02:12.1]} 15... Nxe3 {[%clk 0:01:48.8]} 16. Rxe3 {[%clk 0:02:12.6]} 16... Re8
{[%clk 0:01:46.4]} 17. Re1 {[%clk 0:02:08.8]} 17... Qb6 {[%clk 0:01:30.1]} 18.
Nd2 {[%clk 0:01:56]} 18... Bxd4 {[%clk 0:01:27.6]} 19. cxd4 {[%clk 0:01:55.6]}
19... Qxd4 {[%clk 0:01:28.5]} 20. Nxe4 {[%clk 0:01:53]} 20... Rd8 {[%clk
0:00:47.7]} 21. Qxd4 {[%clk 0:01:43.5]} 21... Rxd4 {[%clk 0:00:46.5]} 22. Nxf6+
{[%clk 0:01:40]} 22... gxf6 {[%clk 0:00:47.4]} 23. Re8+ {[%clk 0:01:39.8]} 23...
Kg7 {[%clk 0:00:47.8]} 24. Bf5 {[%clk 0:01:36.7]} 24... Bxf5 {[%clk 0:00:48.1]}
25. Rxa8 {[%clk 0:01:36.4]} 25... a6 {[%clk 0:00:47.4]} 26. Re1 {[%clk
0:01:31.5]} 26... Be4 {[%clk 0:00:30.2]} 27. f3 {[%clk 0:01:29]} 27... Bc6
{[%clk 0:00:29.9]} 28. Re2 {[%clk 0:01:25.3]} 28... h5 {[%clk 0:00:27.3]} 29.
Kf2 {[%clk 0:01:23.5]} 29... h4 {[%clk 0:00:26.5]} 30. Ke3 {[%clk 0:01:19.9]}
30... Rd1 {[%clk 0:00:25.9]} 31. Rd2 {[%clk 0:01:15.3]} 31... Ra1 {[%clk
0:00:20.3]} 32. Kf4 {[%clk 0:01:14.5]} 32... Rg1 {[%clk 0:00:12.7]} 33. Kg4
{[%clk 0:01:12.5]} 33... Bb5 {[%clk 0:00:08.3]} 34. Kxh4 {[%clk 0:01:11.2]}
34... Bc6 {[%clk 0:00:08.7]} 35. Kg3 {[%clk 0:01:11]} 35... Re1 {[%clk
0:00:08.9]} 36. h4 {[%clk 0:01:06.9]} 36... Re5 {[%clk 0:00:09.2]} 37. Kf4
{[%clk 0:01:03.5]} 37... b5 {[%clk 0:00:07.6]} 38. Rdd8 {[%clk 0:01:02.3]} 38...
Bxa8 {[%clk 0:00:06.9]} 39. Rxa8 {[%clk 0:01:01.3]} 39... Re2 {[%clk 0:00:07.5]}
40. Rxa6 {[%clk 0:00:58.1]} 40... Rxg2 {[%clk 0:00:08]} 41. a4 {[%clk
0:00:58.4]} 41... bxa4 {[%clk 0:00:07.4]} 42. bxa4 {[%clk 0:00:58.6]} 42... Ra2
{[%clk 0:00:07.6]} 43. Kf5 {[%clk 0:00:57.7]} 43... Rf2 {[%clk 0:00:04.7]} 44.
f4 {[%clk 0:00:58]} 44... Rh2 {[%clk 0:00:04.9]} 45. Kg4 {[%clk 0:00:58.3]}
45... Rg2+ {[%clk 0:00:04.9]} 46. Kf3 {[%clk 0:00:57.4]} 46... Ra2 {[%clk
0:00:05.3]} 47. a5 {[%clk 0:00:57.1]} 47... Ra4 {[%clk 0:00:05.4]} 48. Kg4
{[%clk 0:00:56.3]} 48... Kg6 {[%clk 0:00:05.1]} 49. h5+ {[%clk 0:00:56.1]} 49...
Kg7 {[%clk 0:00:05.6]} 50. Kf5 {[%clk 0:00:54.7]} 50... Ra1 {[%clk 0:00:05.7]}
51. h6+ {[%clk 0:00:53.7]} 51... Kxh6 {[%clk 0:00:05.4]} 52. Kxf6 {[%clk
0:00:54.1]} 52... Rf1 {[%clk 0:00:04]} 53. Kxf7+ {[%clk 0:00:54.1]} 53... Kh5
{[%clk 0:00:03.9]} 54. Rf6 {[%clk 0:00:53.7]} 54... Ra1 {[%clk 0:00:03.4]} 55.
a6 {[%clk 0:00:53.9]} 55... Kg4 {[%clk 0:00:04.1]} 56. f5 {[%clk 0:00:48.7]}
56... Kg5 {[%clk 0:00:04]} 57. Kg7 {[%clk 0:00:46.8]} 57... Ra5 {[%clk
0:00:02.7]} 58. Kf7 {[%clk 0:00:46.2]} 58... Ra1 {[%clk 0:00:02.2]} 59. Ke7
{[%clk 0:00:45.4]} 59... Re1+ {[%clk 0:00:02]} 60. Re6 {[%clk 0:00:45]} 60...
Ra1 {[%clk 0:00:02.5]} 61. f6 {[%clk 0:00:45.2]} 61... Kg6 {[%clk 0:00:03.4]}
62. f7+ {[%clk 0:00:45.3]} 62... Kg7 {[%clk 0:00:04.3]} 63. Rg6+ {[%clk
0:00:44.7]} 63... Kxg6 {[%clk 0:00:05.1]} 64. f8=Q {[%clk 0:00:45]} 64... Rxa6
{[%clk 0:00:05.7]} 65. Qf1 {[%clk 0:00:42.4]} 65... Ra7+ {[%clk 0:00:05]} 66.
Ke6 {[%clk 0:00:41.4]} 66... Kh7 {[%clk 0:00:03.1]} 67. Qd3+ {[%clk 0:00:40.4]}
67... Kg8 {[%clk 0:00:03]} 68. Qg3+ {[%clk 0:00:38.9]} 68... Rg7 {[%clk
0:00:02.9]} 69. Qb8+ {[%clk 0:00:38]} 69... Kh7 {[%clk 0:00:03.3]} 70. Kf6
{[%clk 0:00:36.6]} 70... Rg6+ {[%clk 0:00:03.4]} 71. Kf5 {[%clk 0:00:36.8]}
71... Rg2 {[%clk 0:00:02.6]} 72. Qb7+ {[%clk 0:00:35.8]} 72... Rg7 {[%clk
0:00:02.2]} 73. Qh1+ {[%clk 0:00:36.1]} 73... Kg8 {[%clk 0:00:02.2]} 74. Kf6
{[%clk 0:00:35.8]} 74... Rf7+ {[%clk 0:00:02.5]} 75. Ke6 {[%clk 0:00:35.3]}
75... Ra7 {[%clk 0:00:02.7]} 76. Qg1+ {[%clk 0:00:27.5]} 76... Rg7 {[%clk
0:00:03.2]} 77. Qh2 {[%clk 0:00:25.7]} 77... Rb7 {[%clk 0:00:02.7]} 78. Qg2+
{[%clk 0:00:23.3]} 78... Rg7 {[%clk 0:00:03.1]} 79. Qh2 {[%clk 0:00:21.5]} 79...
Rb7 {[%clk 0:00:02.6]} 80. Qh5 {[%clk 0:00:20.1]} 80... Rb6+ {[%clk 0:00:02.6]}
81. Ke7 {[%clk 0:00:19.7]} 81... Rb7+ {[%clk 0:00:03]} 82. Kd8 {[%clk
0:00:19.5]} 82... Rf7 {[%clk 0:00:02.9]} 83. Qd5 {[%clk 0:00:18.2]} 83... Kg7
{[%clk 0:00:02.7]} 84. Qg5+ {[%clk 0:00:18.1]} 84... Kf8 {[%clk 0:00:02.4]} 85.
Qg3 {[%clk 0:00:08.9]} 85... Rf6 {[%clk 0:00:01.6]} 86. Kd7 {[%clk 0:00:06.9]}
86... Kf7 {[%clk 0:00:02.5]} 87. Qb3+ {[%clk 0:00:06.1]} 87... Kg7 {[%clk
0:00:03.4]} 88. Qg3+ {[%clk 0:00:05.9]} 88... Kf7 {[%clk 0:00:03.5]} 89. Qb3+
{[%clk 0:00:05.6]} 89... Kf8 {[%clk 0:00:04]} 90. Qg3 {[%clk 0:00:05.2]} 90...
Kf7 {[%clk 0:00:04.2]} 1/2-1/2

[Event "Late-Titled-Tuesday-Blitz-June-04-2024"]
[Site "Chess.com"]
[Date "2024.06.04"]
[Round "1"]
[White "SharathRk6"]
[Black "igorkovalenko"]
[Result "1/2-1/2"]
[WhiteElo "2516"]
[BlackElo "3008"]
[TimeControl "180+1"]
[EndTime "14:09:41 PDT"]
[Termination "Game drawn by stalemate"]

1. e4 {[%clk 0:03:00.9]} 1... d5 {[%clk 0:02:49.9]} 2. exd5 {[%clk 0:03:00.5]}
2... Qxd5 {[%clk 0:02:50.8]} 3. Nf3 {[%clk 0:03:00.5]} 3... Bg4 {[%clk
0:02:49.2]} 4. Be2 {[%clk 0:03:00.3]} 4... Nc6 {[%clk 0:02:49.4]} 5. d4 {[%clk
0:02:58]} 5... O-O-O {[%clk 0:02:48.9]} 6. c3 {[%clk 0:02:57.9]} 6... Nf6 {[%clk
0:02:41.5]} 7. h3 {[%clk 0:02:57.6]} 7... Bh5 {[%clk 0:02:41.1]} 8. Nbd2 {[%clk
0:02:52]} 8... e5 {[%clk 0:02:38.4]} 9. dxe5 {[%clk 0:02:46.8]} 9... Nxe5 {[%clk
0:02:38.2]} 10. O-O {[%clk 0:02:42]} 10... Nd3 {[%clk 0:02:24.9]} 11. Nb3 {[%clk
0:02:21.2]} 11... Ne4 {[%clk 0:01:58.4]} 12. Be3 {[%clk 0:01:58.4]} 12... Nxb2
{[%clk 0:01:48]} 13. Qc2 {[%clk 0:01:57.5]} 13... Nc4 {[%clk 0:01:36.1]} 14.
Rad1 {[%clk 0:01:25.2]} 14... Nxe3 {[%clk 0:01:35.7]} 15. fxe3 {[%clk
0:01:26.1]} 15... Qe6 {[%clk 0:01:17]} 16. Rxd8+ {[%clk 0:01:23.4]} 16... Kxd8
{[%clk 0:01:17.7]} 17. Nfd4 {[%clk 0:01:20.9]} 17... Qe5 {[%clk 0:01:15.1]} 18.
Bxh5 {[%clk 0:01:17.8]} 18... Ng3 {[%clk 0:01:13.9]} 19. Rd1 {[%clk 0:01:16.1]}
19... Bd6 {[%clk 0:00:39.3]} 20. Bf3 {[%clk 0:01:14.4]} 20... Qxe3+ {[%clk
0:00:35.4]} 21. Qf2 {[%clk 0:01:10.1]} 21... Qxf2+ {[%clk 0:00:35.7]} 22. Kxf2
{[%clk 0:01:09.7]} 22... Kc8 {[%clk 0:00:32.8]} 23. Nb5 {[%clk 0:01:06.2]} 23...
Be5 {[%clk 0:00:25.5]} 24. Nxa7+ {[%clk 0:00:39.3]} 24... Kb8 {[%clk 0:00:25.4]}
25. Nb5 {[%clk 0:00:39.9]} 25... Nf5 {[%clk 0:00:20.4]} 26. N5d4 {[%clk
0:00:38.1]} 26... Bg3+ {[%clk 0:00:19]} 27. Kg1 {[%clk 0:00:35.5]} 27... Ne3
{[%clk 0:00:17.4]} 28. Rd3 {[%clk 0:00:34.4]} 28... Nc4 {[%clk 0:00:18.1]} 29.
Ne2 {[%clk 0:00:25.6]} 29... Be5 {[%clk 0:00:16.9]} 30. Bd5 {[%clk 0:00:24.7]}
30... Nd6 {[%clk 0:00:17]} 31. c4 {[%clk 0:00:22.8]} 31... c6 {[%clk 0:00:17]}
32. c5 {[%clk 0:00:23.1]} 32... Nb5 {[%clk 0:00:12.2]} 33. Bxf7 {[%clk 0:00:22]}
33... Nc7 {[%clk 0:00:09.1]} 34. Bc4 {[%clk 0:00:21.6]} 34... Re8 {[%clk
0:00:08.9]} 35. Re3 {[%clk 0:00:20.3]} 35... Bd4 {[%clk 0:00:09.3]} 36. Nexd4
{[%clk 0:00:17.8]} 36... Rxe3 {[%clk 0:00:10.2]} 37. Kf2 {[%clk 0:00:18.1]}
37... Rc3 {[%clk 0:00:10.6]} 38. Bg8 {[%clk 0:00:16.2]} 38... h6 {[%clk
0:00:10.5]} 39. g4 {[%clk 0:00:14.4]} 39... Rxh3 {[%clk 0:00:09.8]} 40. Kg2
{[%clk 0:00:14.9]} 40... Rc3 {[%clk 0:00:07.8]} 41. Bf7 {[%clk 0:00:15.4]} 41...
Na6 {[%clk 0:00:06.9]} 42. Ne6 {[%clk 0:00:14]} 42... g5 {[%clk 0:00:06.7]} 43.
Bg6 {[%clk 0:00:12.5]} 43... Nb4 {[%clk 0:00:06]} 44. Nbd4 {[%clk 0:00:09.9]}
44... Nxa2 {[%clk 0:00:05]} 45. Nf5 {[%clk 0:00:10.5]} 45... Nb4 {[%clk
0:00:04.8]} 46. Nxh6 {[%clk 0:00:10.8]} 46... Nd5 {[%clk 0:00:05.4]} 47. Be4
{[%clk 0:00:10.3]} 47... Ne3+ {[%clk 0:00:05.5]} 48. Kf2 {[%clk 0:00:09.3]}
48... Ka7 {[%clk 0:00:04.9]} 49. Nxg5 {[%clk 0:00:09.2]} 49... Nxg4+ {[%clk
0:00:03.9]} 50. Nxg4 {[%clk 0:00:09.1]} 50... Rxc5 {[%clk 0:00:04.8]} 51. Ne6
{[%clk 0:00:08.8]} 51... Rc4 {[%clk 0:00:04.8]} 52. Ke3 {[%clk 0:00:09]} 52...
Ra4 {[%clk 0:00:04.9]} 53. Ne5 {[%clk 0:00:09.1]} 53... Kb6 {[%clk 0:00:05.2]}
54. Kd3 {[%clk 0:00:08.6]} 54... Ra3+ {[%clk 0:00:05.7]} 55. Kd2 {[%clk
0:00:08.1]} 55... Rh3 {[%clk 0:00:06.6]} 56. Nf4 {[%clk 0:00:07.9]} 56... Rh4
{[%clk 0:00:06.6]} 57. Ke3 {[%clk 0:00:08]} 57... Rh2 {[%clk 0:00:06.2]} 58.
Nfd3 {[%clk 0:00:08.3]} 58... Ra2 {[%clk 0:00:06.5]} 59. Kd4 {[%clk 0:00:08.4]}
59... Ra4+ {[%clk 0:00:06.4]} 60. Nc4+ {[%clk 0:00:08.4]} 60... Kc7 {[%clk
0:00:06.2]} 61. Nb2 {[%clk 0:00:08.3]} 61... Ra2 {[%clk 0:00:05.5]} 62. Kc3
{[%clk 0:00:08.3]} 62... b5 {[%clk 0:00:06]} 63. Nd2 {[%clk 0:00:07.9]} 63...
Kb6 {[%clk 0:00:05.4]} 64. Kb3 {[%clk 0:00:08.1]} 64... Ra1 {[%clk 0:00:05.4]}
65. Nd3 {[%clk 0:00:06.6]} 65... c5 {[%clk 0:00:05.5]} 66. Bf5 {[%clk 0:00:05]}
66... Ra7 {[%clk 0:00:03.4]} 67. Be4 {[%clk 0:00:04.3]} 67... c4+ {[%clk
0:00:03.8]} 68. Nxc4+ {[%clk 0:00:04.2]} 68... bxc4+ {[%clk 0:00:04.7]} 69. Kxc4
{[%clk 0:00:05]} 69... Ra4+ {[%clk 0:00:05.1]} 70. Kd5 {[%clk 0:00:05.5]} 70...
Ra5+ {[%clk 0:00:05.3]} 71. Ke6 {[%clk 0:00:06.1]} 71... Rh5 {[%clk 0:00:06]}
72. Bf5 {[%clk 0:00:05.7]} 72... Rh6+ {[%clk 0:00:06.1]} 73. Ke5 {[%clk
0:00:05.9]} 73... Kb5 {[%clk 0:00:06.7]} 74. Nf4 {[%clk 0:00:06.6]} 74... Kc4
{[%clk 0:00:07]} 75. Bg4 {[%clk 0:00:06.9]} 75... Kc5 {[%clk 0:00:07.2]} 76. Kf5
{[%clk 0:00:07.3]} 76... Rb6 {[%clk 0:00:06.9]} 77. Ne6+ {[%clk 0:00:07.2]}
77... Kd5 {[%clk 0:00:07.2]} 78. Nf4+ {[%clk 0:00:07.9]} 78... Kd6 {[%clk
0:00:07.6]} 79. Bf3 {[%clk 0:00:08]} 79... Rb4 {[%clk 0:00:07.6]} 80. Kg5 {[%clk
0:00:06.7]} 80... Ke5 {[%clk 0:00:07.7]} 81. Nd3+ {[%clk 0:00:07.1]} 81... Kd4
{[%clk 0:00:08.3]} 82. Nxb4 {[%clk 0:00:07.7]} 82... Ke3 {[%clk 0:00:09.2]} 83.
Bc6 {[%clk 0:00:07.7]} 83... Kd4 {[%clk 0:00:10.1]} 84. Kf5 {[%clk 0:00:07.3]}
84... Kc4 {[%clk 0:00:11]} 85. Na6 {[%clk 0:00:07.5]} 85... Kd4 {[%clk
0:00:11.1]} 86. Ke6 {[%clk 0:00:08.1]} 86... Kc4 {[%clk 0:00:11.1]} 87. Kd6
{[%clk 0:00:08.8]} 87... Kd4 {[%clk 0:00:12]} 88. Nc5 {[%clk 0:00:09.2]} 88...
Ke3 {[%clk 0:00:12.6]} 89. Be8 {[%clk 0:00:09.7]} 89... Kd4 {[%clk 0:00:13.5]}
90. Kc6 {[%clk 0:00:09.8]} 90... Kc4 {[%clk 0:00:14.4]} 91. Bf7+ {[%clk
0:00:09.8]} 91... Kd4 {[%clk 0:00:15.3]} 92. Kd6 {[%clk 0:00:10.2]} 92... Ke3
{[%clk 0:00:15.5]} 93. Ke5 {[%clk 0:00:10.6]} 93... Kd2 {[%clk 0:00:14.8]} 94.
Ne4+ {[%clk 0:00:11.5]} 94... Kd3 {[%clk 0:00:14.9]} 95. Bg8 {[%clk 0:00:11.4]}
95... Ke3 {[%clk 0:00:15.8]} 96. Bc4 {[%clk 0:00:10.8]} 96... Kf3 {[%clk
0:00:16.1]} 97. Nf6 {[%clk 0:00:10.7]} 97... Ke3 {[%clk 0:00:17]} 98. Ng4+
{[%clk 0:00:11.2]} 98... Kd2 {[%clk 0:00:17.6]} 99. Kf5 {[%clk 0:00:12.1]} 99...
Kc3 {[%clk 0:00:18.5]} 100. Be6 {[%clk 0:00:12.1]} 100... Kd4 {[%clk 0:00:19]}
101. Kf4 {[%clk 0:00:12.6]} 101... Kc5 {[%clk 0:00:19.6]} 102. Ke5 {[%clk
0:00:12.8]} 102... Kc6 {[%clk 0:00:20]} 103. Ne3 {[%clk 0:00:13.2]} 103... Kc5
{[%clk 0:00:20.9]} 104. Bd5 {[%clk 0:00:12.7]} 104... Kb4 {[%clk 0:00:21.8]}
105. Kd4 {[%clk 0:00:13.2]} 105... Ka3 {[%clk 0:00:22.1]} 106. Kc3 {[%clk
0:00:13.1]} 106... Ka4 {[%clk 0:00:22.5]} 107. Bc4 {[%clk 0:00:12.3]} 107... Ka3
{[%clk 0:00:22.8]} 108. Nc2+ {[%clk 0:00:12]} 108... Ka4 {[%clk 0:00:23.2]} 109.
Be2 {[%clk 0:00:11.1]} 109... Ka5 {[%clk 0:00:23.4]} 110. Nb4 {[%clk 0:00:11.7]}
110... Ka4 {[%clk 0:00:23.3]} 111. Kc4 {[%clk 0:00:11.6]} 111... Ka3 {[%clk
0:00:23.9]} 112. Bd3 {[%clk 0:00:10.2]} 112... Ka4 {[%clk 0:00:24]} 113. Bc2+
{[%clk 0:00:10.6]} 113... Ka3 {[%clk 0:00:24.3]} 114. Kc3 {[%clk 0:00:10.1]}
1/2-1/2